[Event "Titled Tuesday Blitz June 20 Late 2023"]
[White "Santos Ruiz, Miguel"]
[Black "Perske, Thore"]
[WhiteFideId "22291482"]
[BlackFideId "12902195"]
[WhiteElo "2499"]
[BlackElo "2336"]
[Result "1-0"]
[Round "4"]
[TimeControl "180+2"]
[Date "2023.06.20"]
[WhiteClock "0:01:04"]
[BlackClock "0:00:08"]
[Board "47"]

1. e4 {[%clk 0:03:00]}  e6 {[%clk 0:02:56]} 2. d4 {[%clk 0:03:00]}  d5 {[%clk 0:02:56]} 3. Nc3 {[%clk 0:03:01]}  Nf6 {[%clk 0:02:52]} 4. e5 {[%clk 0:02:58]}  Nfd7 {[%clk 0:02:49]} 5. f4 {[%clk 0:02:59]}  c5 {[%clk 0:02:48]} 6. Nf3 {[%clk 0:02:59]}  Nc6 {[%clk 0:02:48]} 7. Be3 {[%clk 0:02:59]}  Be7 {[%clk 0:02:45]} 8. Qd2 {[%clk 0:02:51]}  b6 {[%clk 0:02:45]} 9. h4 {[%clk 0:02:51]}  cxd4 {[%clk 0:02:41]} 10. Nxd4 {[%clk 0:02:40]}  Nxd4 {[%clk 0:02:41]} 11. Bxd4 {[%clk 0:02:40]}  Bxh4+ {[%clk 0:02:42]} 12. g3 {[%clk 0:02:36]}  Bxg3+ {[%clk 0:02:25]} 13. Kd1 {[%clk 0:02:35]}  Bh4 {[%clk 0:02:24]} 14. Nb5 {[%clk 0:02:29]}  Be7 {[%clk 0:02:19]} 15. Qg2 {[%clk 0:02:29]}  g6 {[%clk 0:02:16]} 16. Nd6+ {[%clk 0:02:25]}  Bxd6 {[%clk 0:02:16]} 17. exd6 {[%clk 0:02:26]}  f6 {[%clk 0:02:04]} 18. Bd3 {[%clk 0:02:06]}  Nf8 {[%clk 0:01:48]} 19. Bxg6+ {[%clk 0:01:53]}  Nxg6 {[%clk 0:01:44]} 20. Qxg6+ {[%clk 0:01:53]}  hxg6 {[%clk 0:01:42]} 21. Rxh8+ {[%clk 0:01:54]}  Kd7 {[%clk 0:01:39]} 22. Rxd8+ {[%clk 0:01:55]}  Kxd8 {[%clk 0:01:40]} 23. Bxf6+ {[%clk 0:01:56]}  Kd7 {[%clk 0:01:38]} 24. Be5 {[%clk 0:01:55]}  Kc6 {[%clk 0:01:02]} 25. a4 {[%clk 0:01:40]}  Bd7 {[%clk 0:01:01]} 26. Ra3 {[%clk 0:01:40]}  Rc8 {[%clk 0:00:58]} 27. Rg3 {[%clk 0:01:34]}  Be8 {[%clk 0:00:57]} 28. Kd2 {[%clk 0:01:29]}  d4 {[%clk 0:00:31]} 29. Rd3 {[%clk 0:01:27]}  Rd8 {[%clk 0:00:20]} 30. Rxd4 {[%clk 0:01:27]}  Rd7 {[%clk 0:00:21]} 31. b3 {[%clk 0:01:12]}  Rh7 {[%clk 0:00:21]} 32. Kc3 {[%clk 0:01:09]}  Rh3+ {[%clk 0:00:20]} 33. Kb2 {[%clk 0:01:09]}  Rh2 {[%clk 0:00:20]} 34. Rc4+ {[%clk 0:01:09]}  Kd5 {[%clk 0:00:18]} 35. d7 {[%clk 0:01:04]}  Bxd7 {[%clk 0:00:18]} 36. Rd4+ {[%clk 0:01:04]}  Kc6 {[%clk 0:00:18]} 37. Rd6+ {[%clk 0:01:04]}  Kb7 {[%clk 0:00:15]} 38. Rxd7+ {[%clk 0:01:05]}  Ka6 {[%clk 0:00:16]} 39. Bb8 {[%clk 0:01:04]}  Rg2 {[%clk 0:00:08]} 40. Rxa7# {[%clk 0:01:04]} 1-0


[Site "https://www.chess.com"]

[Event "Titled Tuesday Blitz June 20 Late 2023"]
[White "Tristan, Leonardo"]
[Black "De La Villa Garcia, Jesus Maria"]
[WhiteFideId "113816"]
[BlackFideId "2200040"]
[WhiteElo "2461"]
[BlackElo "2535"]
[Result "0-1"]
[Round "4"]
[TimeControl "180+2"]
[Date "2023.06.20"]
[WhiteClock "0:00:00"]
[BlackClock "0:01:39"]
[Board "50"]

1. d4 {[%clk 0:03:00]}  Nf6 {[%clk 0:02:59]} 2. Nf3 {[%clk 0:03:00]}  c5 {[%clk 0:02:59]} 3. c3 {[%clk 0:03:00]}  d5 {[%clk 0:02:59]} 4. Bf4 {[%clk 0:03:00]}  Nc6 {[%clk 0:02:58]} 5. e3 {[%clk 0:03:00]}  Qb6 {[%clk 0:02:59]} 6. Qc2 {[%clk 0:03:00]}  g6 {[%clk 0:02:59]} 7. Nbd2 {[%clk 0:02:59]}  Bf5 {[%clk 0:02:59]} 8. dxc5 {[%clk 0:03:00]}  Qxc5 {[%clk 0:02:58]} 9. Qb3 {[%clk 0:03:00]}  Qb6 {[%clk 0:02:55]} 10. Qxb6 {[%clk 0:02:59]}  axb6 {[%clk 0:02:56]} 11. Bb5 {[%clk 0:02:59]}  Bg7 {[%clk 0:02:56]} 12. h3 {[%clk 0:02:53]}  O-O {[%clk 0:02:55]} 13. O-O {[%clk 0:02:53]}  Rfc8 {[%clk 0:02:47]} 14. Rfe1 {[%clk 0:02:53]}  Nd7 {[%clk 0:02:47]} 15. e4 {[%clk 0:02:52]}  dxe4 {[%clk 0:02:46]} 16. Nxe4 {[%clk 0:02:53]}  Bxe4 {[%clk 0:02:43]} 17. Rxe4 {[%clk 0:02:52]}  Nc5 {[%clk 0:02:36]} 18. Re2 {[%clk 0:01:39]}  Nb3 {[%clk 0:02:26]} 19. Rae1 {[%clk 0:01:39]}  Rxa2 {[%clk 0:02:25]} 20. Bxc6 {[%clk 0:01:40]}  bxc6 {[%clk 0:02:26]} 21. Rxe7 {[%clk 0:01:40]}  Bf6 {[%clk 0:02:20]} 22. Rb7 {[%clk 0:01:37]}  b5 {[%clk 0:02:16]} 23. Be5 {[%clk 0:01:16]}  Nc5 {[%clk 0:02:07]} 24. Rb6 {[%clk 0:00:52]}  Bd8 {[%clk 0:02:02]} 25. Rb8 {[%clk 0:00:46]}  Rxb8 {[%clk 0:01:52]} 26. Bxb8 {[%clk 0:00:46]}  Bf6 {[%clk 0:01:52]} 27. Re8+ {[%clk 0:00:28]}  Kg7 {[%clk 0:01:52]} 28. Rc8 {[%clk 0:00:22]}  Rxb2 {[%clk 0:01:49]} 29. Rxc6 {[%clk 0:00:22]}  Ne4 {[%clk 0:01:50]} 30. Ba7 {[%clk 0:00:17]}  Nxc3 {[%clk 0:01:47]} 31. Kh2 {[%clk 0:00:13]}  b4 {[%clk 0:01:46]} 32. g4 {[%clk 0:00:09]}  Ne4 {[%clk 0:01:44]} 33. Kg2 {[%clk 0:00:08]}  b3 {[%clk 0:01:43]} 34. h4 {[%clk 0:00:08]}  Rc2 {[%clk 0:01:40]} 35. g5 {[%clk 0:00:00]}  Rxc6 {[%clk 0:01:39]} 0-1


[Site "https://www.chess.com"]

[Event "Titled Tuesday Blitz June 20 Late 2023"]
[White "Badelka, Olga"]
[Black "Oro, Faustino"]
[WhiteFideId "13509926"]
[BlackFideId "20000197"]
[WhiteElo "2375"]
[BlackElo "1984"]
[Result "0-1"]
[Round "4"]
[TimeControl "180+2"]
[Date "2023.06.20"]
[WhiteClock "0:00:01"]
[BlackClock "0:00:07"]
[Board "51"]

1. c4 {[%clk 0:02:36]}  Nf6 {[%clk 0:02:58]} 2. Nc3 {[%clk 0:02:35]}  e5 {[%clk 0:02:58]} 3. g3 {[%clk 0:02:33]}  Bb4 {[%clk 0:02:56]} 4. Qc2 {[%clk 0:02:29]}  O-O {[%clk 0:02:54]} 5. Bg2 {[%clk 0:02:29]}  c6 {[%clk 0:02:53]} 6. a3 {[%clk 0:02:29]}  Be7 {[%clk 0:02:51]} 7. e4 {[%clk 0:02:13]}  Na6 {[%clk 0:02:48]} 8. d3 {[%clk 0:02:10]}  Nc7 {[%clk 0:02:48]} 9. Nf3 {[%clk 0:02:03]}  d6 {[%clk 0:02:27]} 10. O-O {[%clk 0:02:03]}  Re8 {[%clk 0:02:18]} 11. d4 {[%clk 0:02:01]}  exd4 {[%clk 0:02:17]} 12. Nxd4 {[%clk 0:02:02]}  Bf8 {[%clk 0:02:18]} 13. Bf4 {[%clk 0:01:50]}  Ne6 {[%clk 0:02:11]} 14. Nxe6 {[%clk 0:01:45]}  Bxe6 {[%clk 0:02:12]} 15. b3 {[%clk 0:01:45]}  Qa5 {[%clk 0:02:00]} 16. Rfd1 {[%clk 0:01:39]}  Rad8 {[%clk 0:01:55]} 17. Ne2 {[%clk 0:01:25]}  d5 {[%clk 0:01:34]} 18. b4 {[%clk 0:01:22]}  Qa6 {[%clk 0:01:34]} 19. b5 {[%clk 0:01:10]}  Qa5 {[%clk 0:01:27]} 20. bxc6 {[%clk 0:01:05]}  bxc6 {[%clk 0:01:26]} 21. Nd4 {[%clk 0:01:05]}  dxc4 {[%clk 0:01:10]} 22. Nxe6 {[%clk 0:00:58]}  Rxd1+ {[%clk 0:01:09]} 23. Rxd1 {[%clk 0:00:57]}  Rxe6 {[%clk 0:01:10]} 24. Qxc4 {[%clk 0:00:56]}  Qxa3 {[%clk 0:01:00]} 25. e5 {[%clk 0:00:55]}  Nd5 {[%clk 0:01:00]} 26. Bxd5 {[%clk 0:00:54]}  cxd5 {[%clk 0:01:01]} 27. Rxd5 {[%clk 0:00:52]}  h6 {[%clk 0:00:59]} 28. Rd8 {[%clk 0:00:49]}  Qe7 {[%clk 0:00:57]} 29. Qc8 {[%clk 0:00:40]}  a5 {[%clk 0:00:53]} 30. Rd7 {[%clk 0:00:23]}  Qb4 {[%clk 0:00:45]} 31. Qc7 {[%clk 0:00:22]}  Qb1+ {[%clk 0:00:38]} 32. Kg2 {[%clk 0:00:22]}  Qe4+ {[%clk 0:00:39]} 33. Kg1 {[%clk 0:00:16]}  g5 {[%clk 0:00:27]} 34. Rxf7 {[%clk 0:00:07]}  gxf4 {[%clk 0:00:25]} 35. Rxf4 {[%clk 0:00:05]}  Qg6 {[%clk 0:00:18]} 36. Qc8 {[%clk 0:00:05]}  Re8 {[%clk 0:00:16]} 37. Qc4+ {[%clk 0:00:04]}  Kh8 {[%clk 0:00:16]} 38. h4 {[%clk 0:00:03]}  Bg7 {[%clk 0:00:15]} 39. e6 {[%clk 0:00:03]}  Rxe6 {[%clk 0:00:14]} 40. Qc8+ {[%clk 0:00:03]}  Kh7 {[%clk 0:00:14]} 41. Qa8 {[%clk 0:00:03]}  Re5 {[%clk 0:00:11]} 42. Kg2 {[%clk 0:00:02]}  Rc5 {[%clk 0:00:09]} 43. Kh2 {[%clk 0:00:02]}  h5 {[%clk 0:00:10]} 44. Qa7 {[%clk 0:00:02]}  Re5 {[%clk 0:00:08]} 45. Qa8 {[%clk 0:00:02]}  Rf5 {[%clk 0:00:08]} 46. Ra4 {[%clk 0:00:01]}  Rxf2+ {[%clk 0:00:08]} 47. Kh1 {[%clk 0:00:01]}  Qb1# {[%clk 0:00:07]} 0-1


[Site "https://www.chess.com"]

[Event "Titled Tuesday Blitz June 20 Late 2023"]
[White "Dushyant Sharma"]
[Black "Velikanov, Alexander"]
[WhiteFideId "25065130"]
[BlackFideId "2039290"]
[WhiteElo "2198"]
[BlackElo "2259"]
[Result "1-0"]
[Round "4"]
[TimeControl "180+2"]
[Date "2023.06.20"]
[WhiteClock "0:00:06"]
[BlackClock "0:00:00"]
[Board "53"]

1. e4 {[%clk 0:03:00]}  e6 {[%clk 0:03:00]} 2. d4 {[%clk 0:02:54]}  d5 {[%clk 0:03:00]} 3. exd5 {[%clk 0:02:48]}  exd5 {[%clk 0:03:00]} 4. Bd3 {[%clk 0:02:44]}  Nf6 {[%clk 0:02:56]} 5. Nf3 {[%clk 0:02:44]}  c5 {[%clk 0:02:56]} 6. c3 {[%clk 0:02:44]}  Nc6 {[%clk 0:02:52]} 7. O-O {[%clk 0:02:44]}  Be7 {[%clk 0:02:52]} 8. Be3 {[%clk 0:02:42]}  c4 {[%clk 0:02:52]} 9. Bc2 {[%clk 0:02:43]}  Bg4 {[%clk 0:02:50]} 10. Nbd2 {[%clk 0:02:43]}  b5 {[%clk 0:02:49]} 11. Qb1 {[%clk 0:02:39]}  Qc7 {[%clk 0:02:36]} 12. b3 {[%clk 0:02:34]}  O-O {[%clk 0:02:30]} 13. Re1 {[%clk 0:02:33]}  b4 {[%clk 0:02:18]} 14. Ne5 {[%clk 0:02:01]}  bxc3 {[%clk 0:02:01]} 15. Ndf3 {[%clk 0:01:15]}  Bxf3 {[%clk 0:01:07]} 16. Nxf3 {[%clk 0:01:16]}  Nb4 {[%clk 0:00:56]} 17. bxc4 {[%clk 0:00:55]}  dxc4 {[%clk 0:00:56]} 18. Bg5 {[%clk 0:00:45]}  Rab8 {[%clk 0:00:43]} 19. Bxh7+ {[%clk 0:00:25]}  Kh8 {[%clk 0:00:42]} 20. Qf5 {[%clk 0:00:25]}  Nxh7 {[%clk 0:00:20]} 21. Bxe7 {[%clk 0:00:20]}  Rfc8 {[%clk 0:00:16]} 22. Ne5 {[%clk 0:00:15]}  Rf8 {[%clk 0:00:04]} 23. Nxf7+ {[%clk 0:00:10]}  Kg8 {[%clk 0:00:04]} 24. Bxf8 {[%clk 0:00:08]}  Rxf8 {[%clk 0:00:05]} 25. Qb5 {[%clk 0:00:05]}  Nc2 {[%clk 0:00:04]} 26. Ne5 {[%clk 0:00:05]}  Nxa1 {[%clk 0:00:02]} 27. Qd5+ {[%clk 0:00:06]}  Rf7 {[%clk 0:00:01]} 28. Nxf7 {[%clk 0:00:05]}  Qxf7 {[%clk 0:00:02]} 29. Qd8+ {[%clk 0:00:05]}  Nf8 {[%clk 0:00:02]} 30. Rxa1 {[%clk 0:00:06]}  Qf5 {[%clk 0:00:02]} 31. Rc1 {[%clk 0:00:05]}  Qd3 {[%clk 0:00:02]} 32. Qe7 {[%clk 0:00:05]}  Qd2 {[%clk 0:00:02]} 33. Qe3 {[%clk 0:00:05]}  Qxa2 {[%clk 0:00:02]} 34. Qxc3 {[%clk 0:00:04]}  Kh7 {[%clk 0:00:01]} 35. Qxc4 {[%clk 0:00:05]}  Qb2 {[%clk 0:00:00]} 36. Qc2+ {[%clk 0:00:06]} 1-0


[Site "https://www.chess.com"]

[Event "Titled Tuesday Blitz June 20 Late 2023"]
[White "Veiga, Jose Francisco R P Neves"]
[Black "Krsnik Cohar, Ivan Vihor"]
[WhiteFideId "1930087"]
[BlackFideId "14520044"]
[WhiteElo "2319"]
[BlackElo "2414"]
[Result "0-1"]
[Round "4"]
[TimeControl "180+2"]
[Date "2023.06.20"]
[WhiteClock "0:01:01"]
[BlackClock "0:00:12"]
[Board "54"]

1. e4 {[%clk 0:03:00]}  c5 {[%clk 0:02:59]} 2. Nf3 {[%clk 0:03:00]}  g6 {[%clk 0:03:00]} 3. d4 {[%clk 0:03:00]}  cxd4 {[%clk 0:03:01]} 4. Nxd4 {[%clk 0:03:01]}  Nf6 {[%clk 0:03:02]} 5. e5 {[%clk 0:02:55]}  Nd5 {[%clk 0:03:00]} 6. c4 {[%clk 0:02:48]}  Nc7 {[%clk 0:03:00]} 7. Nc3 {[%clk 0:02:45]}  Bg7 {[%clk 0:03:00]} 8. f4 {[%clk 0:02:45]}  d6 {[%clk 0:02:58]} 9. exd6 {[%clk 0:02:31]}  Qxd6 {[%clk 0:02:59]} 10. Ndb5 {[%clk 0:02:31]}  Nxb5 {[%clk 0:02:59]} 11. Nxb5 {[%clk 0:02:30]}  Qxd1+ {[%clk 0:02:52]} 12. Kxd1 {[%clk 0:02:31]}  Na6 {[%clk 0:02:48]} 13. Bd3 {[%clk 0:02:28]}  O-O {[%clk 0:02:48]} 14. a3 {[%clk 0:02:23]}  Nc5 {[%clk 0:02:44]} 15. Bc2 {[%clk 0:02:19]}  Rd8+ {[%clk 0:02:44]} 16. Ke2 {[%clk 0:02:13]}  Bg4+ {[%clk 0:02:42]} 17. Ke3 {[%clk 0:02:14]}  a6 {[%clk 0:02:39]} 18. h3 {[%clk 0:02:02]}  axb5 {[%clk 0:02:17]} 19. hxg4 {[%clk 0:02:02]}  bxc4 {[%clk 0:02:17]} 20. Rd1 {[%clk 0:01:55]}  Rxd1 {[%clk 0:02:08]} 21. Bxd1 {[%clk 0:01:56]}  Rd8 {[%clk 0:02:08]} 22. Be2 {[%clk 0:01:45]}  b5 {[%clk 0:01:51]} 23. Rb1 {[%clk 0:01:34]}  Nb3 {[%clk 0:01:30]} 24. a4 {[%clk 0:01:32]}  Nxc1 {[%clk 0:01:30]} 25. Rxc1 {[%clk 0:01:32]}  Bxb2 {[%clk 0:01:31]} 26. Rc2 {[%clk 0:01:31]}  Bd4+ {[%clk 0:01:27]} 27. Kf3 {[%clk 0:01:31]}  bxa4 {[%clk 0:01:27]} 28. Bxc4 {[%clk 0:01:30]}  a3 {[%clk 0:01:23]} 29. Rd2 {[%clk 0:01:19]}  Rd6 {[%clk 0:00:55]} 30. Rd3 {[%clk 0:01:11]}  Bc5 {[%clk 0:00:48]} 31. Rxd6 {[%clk 0:01:11]}  Bxd6 {[%clk 0:00:48]} 32. f5 {[%clk 0:01:11]}  Kg7 {[%clk 0:00:46]} 33. fxg6 {[%clk 0:01:05]}  hxg6 {[%clk 0:00:44]} 34. g5 {[%clk 0:01:04]}  Bb4 {[%clk 0:00:31]} 35. Kg4 {[%clk 0:01:01]}  Bd2 {[%clk 0:00:31]} 36. Ba2 {[%clk 0:01:02]}  Kf8 {[%clk 0:00:30]} 37. Bb3 {[%clk 0:01:02]}  e6 {[%clk 0:00:29]} 38. Kf3 {[%clk 0:01:02]}  Bxg5 {[%clk 0:00:28]} 39. Ke4 {[%clk 0:01:02]}  Ke7 {[%clk 0:00:27]} 40. Kd3 {[%clk 0:01:02]}  Bf4 {[%clk 0:00:27]} 41. Ke4 {[%clk 0:01:03]}  Bd6 {[%clk 0:00:26]} 42. g4 {[%clk 0:01:01]}  f5+ {[%clk 0:00:21]} 43. gxf5 {[%clk 0:01:01]}  exf5+ {[%clk 0:00:21]} 44. Kd4 {[%clk 0:01:02]}  Kf6 {[%clk 0:00:21]} 45. Kd5 {[%clk 0:01:02]}  Bf8 {[%clk 0:00:20]} 46. Kd4 {[%clk 0:01:02]}  g5 {[%clk 0:00:20]} 47. Ke3 {[%clk 0:01:03]}  g4 {[%clk 0:00:19]} 48. Ba2 {[%clk 0:01:03]}  Ke5 {[%clk 0:00:18]} 49. Bb3 {[%clk 0:01:03]}  f4+ {[%clk 0:00:19]} 50. Kf2 {[%clk 0:01:04]}  Bc5+ {[%clk 0:00:19]} 51. Kg2 {[%clk 0:01:04]}  Kd4 {[%clk 0:00:17]} 52. Be6 {[%clk 0:01:03]}  Kc3 {[%clk 0:00:17]} 53. Kf1 {[%clk 0:01:02]}  Kb2 {[%clk 0:00:18]} 54. Bxg4 {[%clk 0:01:00]}  a2 {[%clk 0:00:18]} 55. Bd1 {[%clk 0:00:59]}  a1=Q {[%clk 0:00:16]} 56. Ke1 {[%clk 0:01:00]}  f3 {[%clk 0:00:13]} 57. Kd2 {[%clk 0:00:58]}  Bb4+ {[%clk 0:00:13]} 58. Kd3 {[%clk 0:00:58]}  Qxd1+ {[%clk 0:00:13]} 59. Ke3 {[%clk 0:00:58]}  Qe2+ {[%clk 0:00:13]} 60. Kf4 {[%clk 0:00:59]}  f2 {[%clk 0:00:13]} 61. Kg3 {[%clk 0:00:59]}  f1=Q {[%clk 0:00:12]} 62. Kh4 {[%clk 0:01:00]}  Qh2+ {[%clk 0:00:12]} 63. Kg4 {[%clk 0:01:00]}  Qhg2+ {[%clk 0:00:12]} 64. Kh5 {[%clk 0:01:01]}  Qfh1# {[%clk 0:00:12]} 0-1


[Site "https://www.chess.com"]

[Event "Titled Tuesday Blitz June 20 Late 2023"]
[White "Daggupati, Balaji"]
[Black "Keleberda, Tymur"]
[WhiteFideId "2090759"]
[BlackFideId "14174294"]
[WhiteElo "2707"]
[BlackElo "2198"]
[Result "0-1"]
[Round "4"]
[TimeControl "180+2"]
[Date "2023.06.20"]
[WhiteClock "0:00:45"]
[BlackClock "0:00:48"]
[Board "55"]

1. e4 {[%clk 0:03:00]}  c5 {[%clk 0:03:00]} 2. Nf3 {[%clk 0:03:01]}  d6 {[%clk 0:03:00]} 3. d4 {[%clk 0:03:01]}  cxd4 {[%clk 0:03:01]} 4. Nxd4 {[%clk 0:03:01]}  Nf6 {[%clk 0:03:01]} 5. Nc3 {[%clk 0:03:02]}  a6 {[%clk 0:03:01]} 6. Qe2 {[%clk 0:03:03]}  e5 {[%clk 0:03:01]} 7. Nf5 {[%clk 0:03:03]}  g6 {[%clk 0:02:56]} 8. Ne3 {[%clk 0:03:03]}  Be6 {[%clk 0:02:54]} 9. g3 {[%clk 0:03:03]}  Nbd7 {[%clk 0:02:53]} 10. Bg2 {[%clk 0:03:03]}  Bg7 {[%clk 0:02:50]} 11. O-O {[%clk 0:03:03]}  O-O {[%clk 0:02:50]} 12. f4 {[%clk 0:02:57]}  Nc5 {[%clk 0:02:33]} 13. b4 {[%clk 0:02:53]}  exf4 {[%clk 0:02:29]} 14. gxf4 {[%clk 0:02:42]}  Nfxe4 {[%clk 0:02:28]} 15. Nxe4 {[%clk 0:02:14]}  Nxe4 {[%clk 0:02:28]} 16. Bxe4 {[%clk 0:02:10]}  Bxa1 {[%clk 0:02:24]} 17. f5 {[%clk 0:02:10]}  Qh4 {[%clk 0:02:06]} 18. Ng2 {[%clk 0:02:05]}  Bd4+ {[%clk 0:02:02]} 19. Kh1 {[%clk 0:02:04]}  Bc4 {[%clk 0:02:02]} 20. Qxc4 {[%clk 0:01:49]}  Qxe4 {[%clk 0:02:02]} 21. c3 {[%clk 0:01:44]}  Rac8 {[%clk 0:01:22]} 22. Qxd4 {[%clk 0:01:44]}  Qxd4 {[%clk 0:01:22]} 23. cxd4 {[%clk 0:01:45]}  f6 {[%clk 0:01:22]} 24. fxg6 {[%clk 0:01:43]}  hxg6 {[%clk 0:01:22]} 25. Nf4 {[%clk 0:01:43]}  Kf7 {[%clk 0:01:18]} 26. d5 {[%clk 0:01:43]}  Rh8 {[%clk 0:01:10]} 27. Be3 {[%clk 0:01:13]}  Rc2 {[%clk 0:01:10]} 28. Ng2 {[%clk 0:01:02]}  Rh5 {[%clk 0:00:53]} 29. Bd4 {[%clk 0:00:57]}  Rxd5 {[%clk 0:00:48]} 30. Bxf6 {[%clk 0:00:56]}  Rf5 {[%clk 0:00:48]} 31. Rxf5 {[%clk 0:00:45]}  Rc1+ {[%clk 0:00:48]} 0-1


[Site "https://www.chess.com"]

[Event "Titled Tuesday Blitz June 20 Late 2023"]
[White "Timmermans, Mark"]
[Black "MaryanKyrychenko"]
[WhiteFideId "1026399"]
[WhiteElo "2460"]
[BlackElo "2525"]
[Result "1/2-1/2"]
[Round "4"]
[TimeControl "180+2"]
[Date "2023.06.20"]
[WhiteClock "0:00:20"]
[BlackClock "0:00:04"]
[Board "56"]

1. e4 {[%clk 0:03:00]}  c5 {[%clk 0:03:00]} 2. Nf3 {[%clk 0:02:57]}  d6 {[%clk 0:03:00]} 3. d4 {[%clk 0:02:55]}  cxd4 {[%clk 0:03:01]} 4. Nxd4 {[%clk 0:02:53]}  Nf6 {[%clk 0:03:01]} 5. Nc3 {[%clk 0:02:49]}  g6 {[%clk 0:03:01]} 6. f3 {[%clk 0:02:48]}  Bg7 {[%clk 0:03:01]} 7. Be3 {[%clk 0:02:49]}  O-O {[%clk 0:03:02]} 8. Qd2 {[%clk 0:02:47]}  Nc6 {[%clk 0:03:02]} 9. O-O-O {[%clk 0:02:46]}  d5 {[%clk 0:03:03]} 10. Qe1 {[%clk 0:02:46]}  e5 {[%clk 0:03:02]} 11. Nxc6 {[%clk 0:02:45]}  bxc6 {[%clk 0:03:03]} 12. exd5 {[%clk 0:02:45]}  Nxd5 {[%clk 0:03:01]} 13. Bc5 {[%clk 0:02:43]}  Re8 {[%clk 0:03:00]} 14. Ne4 {[%clk 0:02:41]}  Qc7 {[%clk 0:02:55]} 15. g4 {[%clk 0:02:13]}  Be6 {[%clk 0:02:49]} 16. h4 {[%clk 0:02:10]}  h6 {[%clk 0:02:45]} 17. h5 {[%clk 0:02:06]}  g5 {[%clk 0:02:45]} 18. Bc4 {[%clk 0:02:05]}  Nf4 {[%clk 0:02:34]} 19. Bd6 {[%clk 0:02:00]}  Qb6 {[%clk 0:02:27]} 20. Bb3 {[%clk 0:02:00]}  Bxb3 {[%clk 0:02:23]} 21. cxb3 {[%clk 0:02:00]}  Rad8 {[%clk 0:02:20]} 22. Kb1 {[%clk 0:01:57]}  Ne6 {[%clk 0:01:45]} 23. Ng3 {[%clk 0:01:54]}  Nd4 {[%clk 0:01:42]} 24. Bb4 {[%clk 0:01:54]}  Nxf3 {[%clk 0:01:37]} 25. Qe4 {[%clk 0:01:52]}  Rd4 {[%clk 0:01:21]} 26. Rxd4 {[%clk 0:01:43]}  Qxd4 {[%clk 0:01:21]} 27. Rc1 {[%clk 0:01:43]}  Rb8 {[%clk 0:01:06]} 28. Ba5 {[%clk 0:01:33]}  Rb5 {[%clk 0:00:57]} 29. Bc3 {[%clk 0:01:30]}  Qxe4+ {[%clk 0:00:53]} 30. Nxe4 {[%clk 0:01:31]}  Rd5 {[%clk 0:00:50]} 31. Ng3 {[%clk 0:01:28]}  Nd4 {[%clk 0:00:44]} 32. Bxd4 {[%clk 0:01:24]}  Rxd4 {[%clk 0:00:40]} 33. Rc4 {[%clk 0:01:24]}  Rxc4 {[%clk 0:00:26]} 34. bxc4 {[%clk 0:01:25]}  Bf8 {[%clk 0:00:25]} 35. Kc2 {[%clk 0:01:22]}  f6 {[%clk 0:00:25]} 36. Kd3 {[%clk 0:01:22]}  Kf7 {[%clk 0:00:26]} 37. Ke4 {[%clk 0:01:18]}  Ke6 {[%clk 0:00:27]} 38. Nf5 {[%clk 0:01:16]}  a5 {[%clk 0:00:26]} 39. b3 {[%clk 0:01:14]}  Kd7 {[%clk 0:00:23]} 40. Ng3 {[%clk 0:01:05]}  Ke6 {[%clk 0:00:22]} 41. Ne2 {[%clk 0:01:05]}  Bb4 {[%clk 0:00:22]} 42. Nc1 {[%clk 0:01:05]}  Bd2 {[%clk 0:00:18]} 43. Nd3 {[%clk 0:01:05]}  Bc3 {[%clk 0:00:16]} 44. a3 {[%clk 0:01:00]}  Kd6 {[%clk 0:00:15]} 45. b4 {[%clk 0:00:59]}  axb4 {[%clk 0:00:15]} 46. axb4 {[%clk 0:01:00]}  Bd4 {[%clk 0:00:15]} 47. Kf5 {[%clk 0:00:59]}  Kc7 {[%clk 0:00:14]} 48. Nc1 {[%clk 0:00:47]}  Bc3 {[%clk 0:00:14]} 49. Ne2 {[%clk 0:00:47]}  Bxb4 {[%clk 0:00:14]} 50. Kxf6 {[%clk 0:00:47]}  e4 {[%clk 0:00:14]} 51. Kg6 {[%clk 0:00:47]}  Kd6 {[%clk 0:00:13]} 52. Kxh6 {[%clk 0:00:47]}  Kc5 {[%clk 0:00:14]} 53. Kxg5 {[%clk 0:00:42]}  Kxc4 {[%clk 0:00:14]} 54. h6 {[%clk 0:00:42]}  Bd2+ {[%clk 0:00:09]} 55. Kf5 {[%clk 0:00:41]}  Bxh6 {[%clk 0:00:08]} 56. Kxe4 {[%clk 0:00:42]}  Kc5 {[%clk 0:00:07]} 57. Kf5 {[%clk 0:00:42]}  Be3 {[%clk 0:00:06]} 58. Ke6 {[%clk 0:00:38]}  Kc4 {[%clk 0:00:06]} 59. Ke5 {[%clk 0:00:37]}  Kd3 {[%clk 0:00:06]} 60. Ng3 {[%clk 0:00:26]}  c5 {[%clk 0:00:06]} 61. Ne4 {[%clk 0:00:26]}  c4 {[%clk 0:00:06]} 62. Kf5 {[%clk 0:00:25]}  Kd4 {[%clk 0:00:05]} 63. Nd6 {[%clk 0:00:24]}  Kd3 {[%clk 0:00:04]} 64. g5 {[%clk 0:00:20]}  Bxg5 {[%clk 0:00:04]} 65. Nxc4 {[%clk 0:00:20]} 1/2-1/2


[Site "https://www.chess.com"]